[Event "Titled Tuesday Blitz March 14 Early 2023"]
[White "Mirzanurov, Bulat"]
[Black "Nurmanova, Alua"]
[WhiteFideId "4184521"]
[BlackFideId "13729390"]
[WhiteElo "2019"]
[BlackElo "2253"]
[Result "0-1"]
[Round "04"]
[TimeControl "180+2"]
[Date "2023.03.14"]
[WhiteClock "0:00:12"]
[BlackClock "0:00:45"]

1. e4 {[%clk 0:03:00]}  c5 {[%clk 0:02:58]} 2. Nf3 {[%clk 0:02:57]}  d6 {[%clk 0:02:58]} 3. d4 {[%clk 0:02:56]}  cxd4 {[%clk 0:02:59]} 4. Nxd4 {[%clk 0:02:56]}  Nf6 {[%clk 0:02:59]} 5. Nc3 {[%clk 0:02:53]}  a6 {[%clk 0:02:59]} 6. f3 {[%clk 0:02:51]}  e5 {[%clk 0:02:59]} 7. Nb3 {[%clk 0:02:51]}  Be7 {[%clk 0:02:56]} 8. Be3 {[%clk 0:02:49]}  Qc7 {[%clk 0:02:52]} 9. Qd2 {[%clk 0:02:48]}  h5 {[%clk 0:02:52]} 10. Nd5 {[%clk 0:02:41]}  Nxd5 {[%clk 0:02:51]} 11. exd5 {[%clk 0:02:41]}  Nd7 {[%clk 0:02:48]} 12. c4 {[%clk 0:02:35]}  b6 {[%clk 0:02:46]} 13. Bd3 {[%clk 0:02:19]}  a5 {[%clk 0:02:38]} 14. Rc1 {[%clk 0:02:10]}  Nf6 {[%clk 0:02:32]} 15. O-O {[%clk 0:02:06]}  h4 {[%clk 0:02:32]} 16. Na1 {[%clk 0:02:01]}  h3 {[%clk 0:02:27]} 17. g3 {[%clk 0:01:59]}  O-O {[%clk 0:02:12]} 18. Nc2 {[%clk 0:01:57]}  Bd7 {[%clk 0:02:02]} 19. Na3 {[%clk 0:01:55]}  Qb7 {[%clk 0:01:58]} 20. Be2 {[%clk 0:01:00]}  Rac8 {[%clk 0:01:51]} 21. Rfd1 {[%clk 0:00:58]}  Nh7 {[%clk 0:01:47]} 22. Nb5 {[%clk 0:00:53]}  f5 {[%clk 0:01:44]} 23. f4 {[%clk 0:00:52]}  exf4 {[%clk 0:01:40]} 24. Bxf4 {[%clk 0:00:51]}  g5 {[%clk 0:01:36]} 25. Bxd6 {[%clk 0:00:41]}  Bxb5 {[%clk 0:01:22]} 26. Bxe7 {[%clk 0:00:40]}  Qxe7 {[%clk 0:01:23]} 27. cxb5 {[%clk 0:00:40]}  Qe4 {[%clk 0:01:20]} 28. Bd3 {[%clk 0:00:32]}  Qf3 {[%clk 0:01:03]} 29. Qf2 {[%clk 0:00:29]}  Qg4 {[%clk 0:00:52]} 30. Rxc8 {[%clk 0:00:25]}  Qxd1+ {[%clk 0:00:52]} 31. Bf1 {[%clk 0:00:19]}  Rxc8 {[%clk 0:00:52]} 32. Qxf5 {[%clk 0:00:18]}  Rf8 {[%clk 0:00:49]} 33. Qe6+ {[%clk 0:00:16]}  Kh8 {[%clk 0:00:48]} 34. Qe5+ {[%clk 0:00:16]}  Rf6 {[%clk 0:00:47]} 35. Qe8+ {[%clk 0:00:13]}  Nf8 {[%clk 0:00:45]} 36. Qh5+ {[%clk 0:00:12]}  Qxh5 {[%clk 0:00:45]} 0-1


[Site "https://www.chess.com"]

[Event "Titled Tuesday Blitz March 14 Early 2023"]
[White "Bews, Steven"]
[Black "Fernandez Siles, Luis"]
[WhiteFideId "2400529"]
[BlackFideId "2209420"]
[WhiteElo "2577"]
[BlackElo "2186"]
[Result "1-0"]
[Round "04"]
[TimeControl "180+2"]
[Date "2023.03.14"]
[WhiteClock "0:01:20"]
[BlackClock "0:00:30"]

1. e4 {[%clk 0:03:00]}  c5 {[%clk 0:02:58]} 2. Nf3 {[%clk 0:02:56]}  Nc6 {[%clk 0:02:58]} 3. d4 {[%clk 0:02:56]}  cxd4 {[%clk 0:02:59]} 4. Nxd4 {[%clk 0:02:57]}  Nf6 {[%clk 0:02:59]} 5. Nc3 {[%clk 0:02:57]}  e5 {[%clk 0:03:00]} 6. Ndb5 {[%clk 0:02:58]}  d6 {[%clk 0:03:00]} 7. a4 {[%clk 0:02:58]}  a6 {[%clk 0:02:54]} 8. Na3 {[%clk 0:02:58]}  Bg4 {[%clk 0:02:53]} 9. f3 {[%clk 0:02:58]}  Be6 {[%clk 0:02:53]} 10. Bc4 {[%clk 0:02:58]}  Rc8 {[%clk 0:02:52]} 11. Be3 {[%clk 0:02:55]}  Nb4 {[%clk 0:02:49]} 12. Bd5 {[%clk 0:02:41]}  Bxd5 {[%clk 0:02:35]} 13. Nxd5 {[%clk 0:02:30]}  Nbxd5 {[%clk 0:02:29]} 14. exd5 {[%clk 0:02:30]}  Qa5+ {[%clk 0:02:28]} 15. c3 {[%clk 0:02:30]}  Qxd5 {[%clk 0:02:27]} 16. O-O {[%clk 0:02:30]}  Qxd1 {[%clk 0:02:23]} 17. Raxd1 {[%clk 0:02:31]}  d5 {[%clk 0:02:23]} 18. Nc2 {[%clk 0:02:27]}  Bc5 {[%clk 0:02:19]} 19. Bxc5 {[%clk 0:02:26]}  Rxc5 {[%clk 0:02:20]} 20. Rfe1 {[%clk 0:02:27]}  e4 {[%clk 0:02:10]} 21. fxe4 {[%clk 0:02:26]}  dxe4 {[%clk 0:02:09]} 22. Ne3 {[%clk 0:02:23]}  O-O {[%clk 0:02:06]} 23. Rd6 {[%clk 0:02:23]}  h5 {[%clk 0:01:55]} 24. h3 {[%clk 0:02:22]}  Re8 {[%clk 0:01:52]} 25. Red1 {[%clk 0:02:22]}  Re6 {[%clk 0:01:40]} 26. Kf2 {[%clk 0:02:09]}  Rxd6 {[%clk 0:01:36]} 27. Rxd6 {[%clk 0:02:10]}  h4 {[%clk 0:01:24]} 28. Rb6 {[%clk 0:01:58]}  Rc7 {[%clk 0:01:17]} 29. Nf5 {[%clk 0:01:54]}  Nd5 {[%clk 0:01:01]} 30. Rd6 {[%clk 0:01:50]}  Ne7 {[%clk 0:00:53]} 31. Nd4 {[%clk 0:01:33]}  f5 {[%clk 0:00:49]} 32. Ke3 {[%clk 0:01:24]}  g5 {[%clk 0:00:45]} 33. Ne6 {[%clk 0:01:20]}  Rc5 {[%clk 0:00:30]} 34. Nxc5 {[%clk 0:01:20]} 1-0


[Site "https://www.chess.com"]

[Event "Titled Tuesday Blitz March 14 Early 2023"]
[White "Safin, Robert"]
[Black "ArtemDyachuk"]
[WhiteFideId "34189120"]
[WhiteElo "2245"]
[BlackElo "2370"]
[Result "1-0"]
[Round "04"]
[TimeControl "180+2"]
[Date "2023.03.14"]
[WhiteClock "0:00:05"]
[BlackClock "0:00:03"]

1. e4 {[%clk 0:03:00]}  c5 {[%clk 0:02:56]} 2. c3 {[%clk 0:03:00]}  Nf6 {[%clk 0:02:56]} 3. e5 {[%clk 0:03:00]}  Nd5 {[%clk 0:02:56]} 4. Nf3 {[%clk 0:03:00]}  d6 {[%clk 0:02:56]} 5. Bb5+ {[%clk 0:03:00]}  Bd7 {[%clk 0:02:55]} 6. Bc4 {[%clk 0:03:00]}  Nb6 {[%clk 0:02:54]} 7. Bb3 {[%clk 0:02:59]}  c4 {[%clk 0:02:51]} 8. Bc2 {[%clk 0:02:59]}  Nc6 {[%clk 0:02:51]} 9. exd6 {[%clk 0:02:59]}  e5 {[%clk 0:02:51]} 10. d4 {[%clk 0:02:48]}  cxd3 {[%clk 0:02:49]} 11. Bxd3 {[%clk 0:02:40]}  g6 {[%clk 0:02:43]} 12. Nbd2 {[%clk 0:02:28]}  Bg7 {[%clk 0:02:43]} 13. c4 {[%clk 0:02:14]}  O-O {[%clk 0:02:38]} 14. c5 {[%clk 0:02:11]}  Nd5 {[%clk 0:02:35]} 15. Ne4 {[%clk 0:02:00]}  h6 {[%clk 0:02:20]} 16. O-O {[%clk 0:01:58]}  Nf4 {[%clk 0:02:20]} 17. Bxf4 {[%clk 0:01:31]}  exf4 {[%clk 0:02:21]} 18. Qd2 {[%clk 0:01:31]}  g5 {[%clk 0:02:19]} 19. Rab1 {[%clk 0:01:22]}  f5 {[%clk 0:01:42]} 20. Nc3 {[%clk 0:01:20]}  Qe8 {[%clk 0:01:35]} 21. Nd5 {[%clk 0:01:07]}  Qh5 {[%clk 0:01:31]} 22. Ne7+ {[%clk 0:00:59]}  Nxe7 {[%clk 0:01:31]} 23. dxe7 {[%clk 0:01:00]}  Rf6 {[%clk 0:01:31]} 24. Bc4+ {[%clk 0:00:49]}  Be6 {[%clk 0:01:31]} 25. Bxe6+ {[%clk 0:00:47]}  Rxe6 {[%clk 0:01:32]} 26. Rfe1 {[%clk 0:00:47]}  Rxe1+ {[%clk 0:01:05]} 27. Rxe1 {[%clk 0:00:45]}  Re8 {[%clk 0:00:57]} 28. Qd5+ {[%clk 0:00:26]}  Qf7 {[%clk 0:00:55]} 29. Qxb7 {[%clk 0:00:26]}  g4 {[%clk 0:00:43]} 30. Nh4 {[%clk 0:00:22]}  g3 {[%clk 0:00:33]} 31. hxg3 {[%clk 0:00:17]}  fxg3 {[%clk 0:00:34]} 32. fxg3 {[%clk 0:00:18]}  f4 {[%clk 0:00:31]} 33. gxf4 {[%clk 0:00:13]}  Bd4+ {[%clk 0:00:25]} 34. Kh1 {[%clk 0:00:13]}  Bf2 {[%clk 0:00:19]} 35. Re5 {[%clk 0:00:04]}  Qxf4 {[%clk 0:00:08]} 36. Qe4 {[%clk 0:00:02]}  Qc1+ {[%clk 0:00:07]} 37. Kh2 {[%clk 0:00:02]}  Qg1+ {[%clk 0:00:07]} 38. Kh3 {[%clk 0:00:02]}  Qh1+ {[%clk 0:00:08]} 39. Kg4 {[%clk 0:00:03]}  Qxh4+ {[%clk 0:00:09]} 40. Kf3 {[%clk 0:00:04]}  Qxe4+ {[%clk 0:00:09]} 41. Kxe4 {[%clk 0:00:03]}  Kf7 {[%clk 0:00:09]} 42. Rf5+ {[%clk 0:00:03]}  Kxe7 {[%clk 0:00:06]} 43. Rxf2 {[%clk 0:00:04]}  Kd7+ {[%clk 0:00:06]} 44. Kd5 {[%clk 0:00:04]}  Re3 {[%clk 0:00:05]} 45. Rf7+ {[%clk 0:00:04]}  Kc8 {[%clk 0:00:05]} 46. Rh7 {[%clk 0:00:05]}  Re2 {[%clk 0:00:06]} 47. b4 {[%clk 0:00:03]}  Rxa2 {[%clk 0:00:06]} 48. Rxh6 {[%clk 0:00:02]}  Rxg2 {[%clk 0:00:07]} 49. Rh7 {[%clk 0:00:02]}  Kb8 {[%clk 0:00:06]} 50. Kc6 {[%clk 0:00:01]}  Rg6+ {[%clk 0:00:06]} 51. Kb5 {[%clk 0:00:02]}  Rf6 {[%clk 0:00:06]} 52. Ka5 {[%clk 0:00:03]}  Rf1 {[%clk 0:00:05]} 53. Rd7 {[%clk 0:00:04]}  Ra1+ {[%clk 0:00:04]} 54. Kb5 {[%clk 0:00:05]}  Rf1 {[%clk 0:00:05]} 55. Rd8+ {[%clk 0:00:04]}  Kc7 {[%clk 0:00:04]} 56. Rh8 {[%clk 0:00:05]}  Kb7 {[%clk 0:00:03]} 57. Rh7+ {[%clk 0:00:05]}  Kb8 {[%clk 0:00:03]} 58. Rd7 {[%clk 0:00:05]}  Rf5 {[%clk 0:00:03]} 59. Kc6 {[%clk 0:00:05]}  Rf6+ {[%clk 0:00:03]} 60. Rd6 {[%clk 0:00:05]}  Rf4 {[%clk 0:00:03]} 61. Rd8# {[%clk 0:00:05]} 1-0


[Site "https://www.chess.com"]

[Event "Titled Tuesday Blitz March 14 Early 2023"]
[White "Skuhala, Barbara"]
[Black "Tokhirjonova, Gulrukhbegim"]
[WhiteFideId "14605465"]
[BlackFideId "14203626"]
[WhiteElo "2072"]
[BlackElo "2268"]
[Result "0-1"]
[Round "04"]
[TimeControl "180+2"]
[Date "2023.03.14"]
[WhiteClock "0:00:06"]
[BlackClock "0:00:38"]

1. e4 {[%clk 0:03:00]}  e5 {[%clk 0:02:59]} 2. Nf3 {[%clk 0:02:59]}  Nc6 {[%clk 0:03:00]} 3. d4 {[%clk 0:02:59]}  exd4 {[%clk 0:03:00]} 4. Nxd4 {[%clk 0:02:58]}  Nf6 {[%clk 0:03:00]} 5. Nxc6 {[%clk 0:02:58]}  bxc6 {[%clk 0:03:01]} 6. e5 {[%clk 0:02:56]}  Qe7 {[%clk 0:03:01]} 7. Qe2 {[%clk 0:02:56]}  Nd5 {[%clk 0:03:02]} 8. c4 {[%clk 0:02:56]}  Ba6 {[%clk 0:03:01]} 9. b3 {[%clk 0:02:56]}  g6 {[%clk 0:03:00]} 10. f4 {[%clk 0:02:51]}  Bg7 {[%clk 0:02:58]} 11. Qe4 {[%clk 0:02:51]}  Nb6 {[%clk 0:02:54]} 12. Bd3 {[%clk 0:02:51]}  d5 {[%clk 0:02:53]} 13. cxd5 {[%clk 0:02:44]}  cxd5 {[%clk 0:02:50]} 14. Qe2 {[%clk 0:02:43]}  Bxd3 {[%clk 0:02:48]} 15. Qxd3 {[%clk 0:02:44]}  O-O {[%clk 0:02:44]} 16. O-O {[%clk 0:02:44]}  c5 {[%clk 0:02:40]} 17. Nd2 {[%clk 0:02:38]}  f6 {[%clk 0:02:40]} 18. exf6 {[%clk 0:02:38]}  Bxf6 {[%clk 0:02:37]} 19. Rb1 {[%clk 0:02:38]}  Rac8 {[%clk 0:02:28]} 20. Nf3 {[%clk 0:02:33]}  c4 {[%clk 0:02:25]} 21. bxc4 {[%clk 0:02:33]}  dxc4 {[%clk 0:02:25]} 22. Qc2 {[%clk 0:02:25]}  c3 {[%clk 0:02:20]} 23. Kh1 {[%clk 0:02:23]}  Kh8 {[%clk 0:02:17]} 24. Re1 {[%clk 0:02:14]}  Qd6 {[%clk 0:02:12]} 25. Be3 {[%clk 0:02:14]}  Nd5 {[%clk 0:02:06]} 26. Rbd1 {[%clk 0:02:05]}  Nxe3 {[%clk 0:02:05]} 27. Rxe3 {[%clk 0:02:05]}  Qxf4 {[%clk 0:02:05]} 28. Ree1 {[%clk 0:02:03]}  Qf5 {[%clk 0:02:01]} 29. Rd3 {[%clk 0:01:36]}  Rcd8 {[%clk 0:01:56]} 30. Red1 {[%clk 0:01:36]}  Rxd3 {[%clk 0:01:53]} 31. Rxd3 {[%clk 0:01:36]}  Rb8 {[%clk 0:01:46]} 32. Qd1 {[%clk 0:00:30]}  Rb2 {[%clk 0:01:27]} 33. Rd8+ {[%clk 0:00:23]}  Bxd8 {[%clk 0:01:23]} 34. Qxd8+ {[%clk 0:00:23]}  Kg7 {[%clk 0:01:22]} 35. Qe7+ {[%clk 0:00:23]}  Qf7 {[%clk 0:01:14]} 36. Qe5+ {[%clk 0:00:21]}  Qf6 {[%clk 0:01:14]} 37. Qc7+ {[%clk 0:00:20]}  Kf8 {[%clk 0:01:13]} 38. Qc8+ {[%clk 0:00:19]}  Ke7 {[%clk 0:01:13]} 39. Qc7+ {[%clk 0:00:19]}  Ke8 {[%clk 0:01:10]} 40. Qc8+ {[%clk 0:00:20]}  Qd8 {[%clk 0:01:07]} 41. Qe6+ {[%clk 0:00:18]}  Qe7 {[%clk 0:01:08]} 42. Qg8+ {[%clk 0:00:17]}  Kd7 {[%clk 0:01:06]} 43. Qd5+ {[%clk 0:00:17]}  Kc8 {[%clk 0:01:06]} 44. Qc4+ {[%clk 0:00:15]}  Qc7 {[%clk 0:01:05]} 45. Qe6+ {[%clk 0:00:14]}  Kb7 {[%clk 0:01:03]} 46. Qd5+ {[%clk 0:00:14]}  Kb6 {[%clk 0:01:02]} 47. h3 {[%clk 0:00:13]}  Rb1+ {[%clk 0:01:00]} 48. Ng1 {[%clk 0:00:13]}  c2 {[%clk 0:00:59]} 49. Qd4+ {[%clk 0:00:12]}  Qc5 {[%clk 0:00:59]} 50. Qd8+ {[%clk 0:00:12]}  Ka6 {[%clk 0:00:57]} 51. Qd3+ {[%clk 0:00:12]}  Ka5 {[%clk 0:00:55]} 52. Qd2+ {[%clk 0:00:10]}  Ka4 {[%clk 0:00:53]} 53. Qd7+ {[%clk 0:00:09]}  Ka3 {[%clk 0:00:52]} 54. Qd3+ {[%clk 0:00:09]}  Kxa2 {[%clk 0:00:52]} 55. Qa6+ {[%clk 0:00:10]}  Kb2 {[%clk 0:00:48]} 56. Qb7+ {[%clk 0:00:10]}  Kc1 {[%clk 0:00:45]} 57. Qe4 {[%clk 0:00:09]}  Rb4 {[%clk 0:00:38]} 58. Qe1+ {[%clk 0:00:06]}  Kb2 {[%clk 0:00:38]} 0-1


[Site "https://www.chess.com"]

[Event "Titled Tuesday Blitz March 14 Early 2023"]
[White "Yurovskykh, Oleksandr"]
[Black "Sahil, Tickoo"]
[WhiteFideId "14134020"]
[BlackFideId "5019710"]
[WhiteElo "2268"]
[BlackElo "2086"]
[Result "1-0"]
[Round "04"]
[TimeControl "180+2"]
[Date "2023.03.14"]
[WhiteClock "0:01:54"]
[BlackClock "0:00:03"]

1. d4 {[%clk 0:03:00]}  Nf6 {[%clk 0:02:54]} 2. Nf3 {[%clk 0:03:00]}  e6 {[%clk 0:02:52]} 3. Bf4 {[%clk 0:03:01]}  d5 {[%clk 0:02:50]} 4. e3 {[%clk 0:03:01]}  Bd6 {[%clk 0:02:51]} 5. Bg3 {[%clk 0:03:01]}  c5 {[%clk 0:02:51]} 6. c3 {[%clk 0:03:01]}  Qc7 {[%clk 0:02:52]} 7. dxc5 {[%clk 0:03:01]}  Qxc5 {[%clk 0:02:52]} 8. Nbd2 {[%clk 0:03:01]}  Qc7 {[%clk 0:02:49]} 9. Bd3 {[%clk 0:03:01]}  Nc6 {[%clk 0:02:46]} 10. Qe2 {[%clk 0:03:01]}  Bd7 {[%clk 0:02:42]} 11. e4 {[%clk 0:03:00]}  dxe4 {[%clk 0:02:42]} 12. Nxe4 {[%clk 0:03:00]}  Nxe4 {[%clk 0:02:42]} 13. Bxe4 {[%clk 0:02:57]}  Bxg3 {[%clk 0:02:41]} 14. hxg3 {[%clk 0:02:57]}  h6 {[%clk 0:02:42]} 15. Rd1 {[%clk 0:02:53]}  O-O-O {[%clk 0:02:40]} 16. O-O {[%clk 0:02:51]}  Kb8 {[%clk 0:02:38]} 17. Rd2 {[%clk 0:02:49]}  Bc8 {[%clk 0:02:37]} 18. Rfd1 {[%clk 0:02:49]}  Rxd2 {[%clk 0:02:37]} 19. Qxd2 {[%clk 0:02:48]}  Rd8 {[%clk 0:02:35]} 20. Qe2 {[%clk 0:02:49]}  Rxd1+ {[%clk 0:02:35]} 21. Qxd1 {[%clk 0:02:50]}  Qd7 {[%clk 0:02:26]} 22. Qxd7 {[%clk 0:02:48]}  Bxd7 {[%clk 0:02:27]} 23. Kf1 {[%clk 0:02:46]}  Kc7 {[%clk 0:02:27]} 24. Ke2 {[%clk 0:02:46]}  Kd6 {[%clk 0:02:28]} 25. Ke3 {[%clk 0:02:47]}  b6 {[%clk 0:02:28]} 26. g4 {[%clk 0:02:42]}  Ne5 {[%clk 0:02:20]} 27. Nxe5 {[%clk 0:02:33]}  Kxe5 {[%clk 0:02:21]} 28. f4+ {[%clk 0:02:21]}  Kd6 {[%clk 0:02:21]} 29. Kd4 {[%clk 0:02:17]}  f6 {[%clk 0:02:15]} 30. Bf3 {[%clk 0:02:07]}  Bc6 {[%clk 0:02:07]} 31. Bxc6 {[%clk 0:02:05]}  Kxc6 {[%clk 0:02:08]} 32. c4 {[%clk 0:02:05]}  a5 {[%clk 0:02:00]} 33. b3 {[%clk 0:02:05]}  Kd6 {[%clk 0:01:56]} 34. a3 {[%clk 0:02:04]}  Kc6 {[%clk 0:01:45]} 35. b4 {[%clk 0:02:05]}  axb4 {[%clk 0:01:44]} 36. axb4 {[%clk 0:02:05]}  g6 {[%clk 0:01:35]} 37. g5 {[%clk 0:01:58]}  hxg5 {[%clk 0:00:09]} 38. fxg5 {[%clk 0:01:58]}  f5 {[%clk 0:00:02]} 39. Ke5 {[%clk 0:01:57]}  Kd7 {[%clk 0:00:03]} 40. g3 {[%clk 0:01:57]}  Ke7 {[%clk 0:00:03]} 41. c5 {[%clk 0:01:56]}  bxc5 {[%clk 0:00:03]} 42. bxc5 {[%clk 0:01:56]}  Kd7 {[%clk 0:00:03]} 43. Kf6 {[%clk 0:01:54]}  Kc6 {[%clk 0:00:02]} 44. Kxg6 {[%clk 0:01:54]}  Kxc5 {[%clk 0:00:02]} 45. Kf6 {[%clk 0:01:54]}  Kd5 {[%clk 0:00:02]} 46. g6 {[%clk 0:01:54]}  e5 {[%clk 0:00:03]} 47. Kxf5 {[%clk 0:01:53]}  e4 {[%clk 0:00:03]} 48. g7 {[%clk 0:01:54]} 1-0


[Site "https://www.chess.com"]

[Event "Titled Tuesday Blitz March 14 Early 2023"]
[White "Loiacono, Antonio"]
[Black "Liu, Casper"]
[WhiteFideId "895415"]
[BlackFideId "1454153"]
[WhiteElo "2257"]
[BlackElo "2221"]
[Result "1-0"]
[Round "04"]
[TimeControl "180+2"]
[Date "2023.03.14"]
[WhiteClock "0:00:05"]
[BlackClock "0:00:01"]

1. e4 {[%clk 0:03:00]}  c5 {[%clk 0:02:48]} 2. Nf3 {[%clk 0:03:00]}  e6 {[%clk 0:02:45]} 3. d4 {[%clk 0:03:00]}  cxd4 {[%clk 0:02:44]} 4. Nxd4 {[%clk 0:03:01]}  a6 {[%clk 0:02:44]} 5. Nc3 {[%clk 0:02:59]}  Bc5 {[%clk 0:02:45]} 6. Nb3 {[%clk 0:02:58]}  Ba7 {[%clk 0:02:44]} 7. e5 {[%clk 0:02:42]}  Nc6 {[%clk 0:02:44]} 8. f4 {[%clk 0:02:36]}  Nge7 {[%clk 0:02:44]} 9. Bd3 {[%clk 0:02:32]}  O-O {[%clk 0:02:43]} 10. Qh5 {[%clk 0:02:27]}  g6 {[%clk 0:02:41]} 11. Qe2 {[%clk 0:02:28]}  d6 {[%clk 0:02:36]} 12. Ne4 {[%clk 0:01:58]}  dxe5 {[%clk 0:02:26]} 13. fxe5 {[%clk 0:01:58]}  Nf5 {[%clk 0:02:21]} 14. Nf6+ {[%clk 0:01:54]}  Kg7 {[%clk 0:02:21]} 15. Bg5 {[%clk 0:01:39]}  Ncd4 {[%clk 0:01:15]} 16. Nh5+ {[%clk 0:00:52]}  gxh5 {[%clk 0:00:59]} 17. Bf6+ {[%clk 0:00:47]}  Kg6 {[%clk 0:00:34]} 18. Qd2 {[%clk 0:00:35]}  Nxc2+ {[%clk 0:00:16]} 19. Qxc2 {[%clk 0:00:26]}  Qb6 {[%clk 0:00:11]} 20. O-O-O {[%clk 0:00:17]}  Bd7 {[%clk 0:00:12]} 21. Kb1 {[%clk 0:00:17]}  Ba4 {[%clk 0:00:12]} 22. Qc4 {[%clk 0:00:14]}  Bb5 {[%clk 0:00:07]} 23. Qh4 {[%clk 0:00:14]}  Bxd3+ {[%clk 0:00:07]} 24. Rxd3 {[%clk 0:00:12]}  Nxh4 {[%clk 0:00:08]} 25. Rg3+ {[%clk 0:00:09]}  Kf5 {[%clk 0:00:08]} 26. Rf1+ {[%clk 0:00:03]}  Ke4 {[%clk 0:00:07]} 27. Nd2+ {[%clk 0:00:01]}  Kd5 {[%clk 0:00:06]} 28. Rd3+ {[%clk 0:00:01]}  Kc6 {[%clk 0:00:05]} 29. Rd6+ {[%clk 0:00:01]}  Kc7 {[%clk 0:00:04]} 30. Rxb6 {[%clk 0:00:02]}  Bxb6 {[%clk 0:00:04]} 31. Bxh4 {[%clk 0:00:03]}  Be3 {[%clk 0:00:02]} 32. Ne4 {[%clk 0:00:03]}  f5 {[%clk 0:00:02]} 33. Nd6 {[%clk 0:00:04]}  Bd4 {[%clk 0:00:01]} 34. Bf6 {[%clk 0:00:05]} 1-0


[Site "https://www.chess.com"]

[Event "Titled Tuesday Blitz March 14 Early 2023"]
[White "Sarkar, Justin"]
[Black "Garakov, Mikhael"]
[WhiteFideId "2010011"]
[BlackFideId "4169034"]
[WhiteElo "2189"]
[BlackElo "2347"]
[Result "1/2-1/2"]
[Round "04"]
[TimeControl "180+2"]
[Date "2023.03.14"]
[WhiteClock "0:00:02"]
[BlackClock "0:00:23"]

1. e4 {[%clk 0:02:58]}  c5 {[%clk 0:02:57]} 2. Nf3 {[%clk 0:02:56]}  e6 {[%clk 0:02:57]} 3. d4 {[%clk 0:02:45]}  cxd4 {[%clk 0:02:55]} 4. Nxd4 {[%clk 0:02:46]}  Nc6 {[%clk 0:02:55]} 5. Nc3 {[%clk 0:02:42]}  Qc7 {[%clk 0:02:53]} 6. Be3 {[%clk 0:02:42]}  a6 {[%clk 0:02:53]} 7. Bd3 {[%clk 0:02:41]}  b5 {[%clk 0:02:51]} 8. Nxc6 {[%clk 0:02:31]}  Qxc6 {[%clk 0:02:51]} 9. O-O {[%clk 0:02:29]}  Nf6 {[%clk 0:02:36]} 10. e5 {[%clk 0:01:49]}  Bb7 {[%clk 0:02:35]} 11. f3 {[%clk 0:01:48]}  Nd5 {[%clk 0:02:33]} 12. Be4 {[%clk 0:01:18]}  Bc5 {[%clk 0:02:32]} 13. Bf2 {[%clk 0:01:00]}  Nxc3 {[%clk 0:01:49]} 14. Bxc6 {[%clk 0:00:58]}  Bxf2+ {[%clk 0:01:47]} 15. Rxf2 {[%clk 0:00:56]}  Nxd1 {[%clk 0:01:48]} 16. Bxb7 {[%clk 0:00:55]}  Rb8 {[%clk 0:01:48]} 17. Rxd1 {[%clk 0:00:40]}  Rxb7 {[%clk 0:01:48]} 18. Rd6 {[%clk 0:00:40]}  Ra7 {[%clk 0:01:41]} 19. Rfd2 {[%clk 0:00:39]}  Ke7 {[%clk 0:01:40]} 20. c3 {[%clk 0:00:32]}  Rc8 {[%clk 0:01:40]} 21. Kf2 {[%clk 0:00:29]}  Rc5 {[%clk 0:01:39]} 22. f4 {[%clk 0:00:28]}  f6 {[%clk 0:01:35]} 23. exf6+ {[%clk 0:00:21]}  gxf6 {[%clk 0:01:36]} 24. Ke3 {[%clk 0:00:16]}  a5 {[%clk 0:01:37]} 25. g3 {[%clk 0:00:06]}  b4 {[%clk 0:01:35]} 26. cxb4 {[%clk 0:00:05]}  axb4 {[%clk 0:01:34]} 27. b3 {[%clk 0:00:04]}  Rc3+ {[%clk 0:01:27]} 28. Ke2 {[%clk 0:00:04]}  Rb7 {[%clk 0:01:07]} 29. Ra6 {[%clk 0:00:04]}  d5 {[%clk 0:01:06]} 30. f5 {[%clk 0:00:02]}  exf5 {[%clk 0:00:54]} 31. Rxd5 {[%clk 0:00:02]}  f4 {[%clk 0:00:54]} 32. gxf4 {[%clk 0:00:02]}  Rh3 {[%clk 0:00:54]} 33. Rd2 {[%clk 0:00:01]}  Rxh2+ {[%clk 0:00:54]} 34. Ke3 {[%clk 0:00:02]}  Rh3+ {[%clk 0:00:51]} 35. Ke4 {[%clk 0:00:02]}  Kf7 {[%clk 0:00:51]} 36. Rdd6 {[%clk 0:00:01]}  Re7+ {[%clk 0:00:50]} 37. Kf5 {[%clk 0:00:01]}  Rh5+ {[%clk 0:00:50]} 38. Kg4 {[%clk 0:00:02]}  Rh6 {[%clk 0:00:51]} 39. Kf5 {[%clk 0:00:02]}  Rh5+ {[%clk 0:00:48]} 40. Kg4 {[%clk 0:00:02]}  Rh2 {[%clk 0:00:46]} 41. Rxf6+ {[%clk 0:00:01]}  Kg7 {[%clk 0:00:47]} 42. Rfe6 {[%clk 0:00:02]}  Rf7 {[%clk 0:00:45]} 43. Reb6 {[%clk 0:00:02]}  h5+ {[%clk 0:00:43]} 44. Kg3 {[%clk 0:00:02]}  Rh1 {[%clk 0:00:27]} 45. Rxb4 {[%clk 0:00:02]}  Rg1+ {[%clk 0:00:27]} 46. Kf2 {[%clk 0:00:02]}  Rg4 {[%clk 0:00:28]} 47. Kf3 {[%clk 0:00:03]}  Rg1 {[%clk 0:00:27]} 48. a4 {[%clk 0:00:03]}  h4 {[%clk 0:00:27]} 49. Rb5 {[%clk 0:00:03]}  Rg3+ {[%clk 0:00:25]} 50. Ke2 {[%clk 0:00:02]}  Rxf4 {[%clk 0:00:23]} 51. Rb7+ {[%clk 0:00:02]}  Rf7 {[%clk 0:00:23]} 52. Rxf7+ {[%clk 0:00:02]}  Kxf7 {[%clk 0:00:23]} 53. Rh6 {[%clk 0:00:02]}  Rxb3 {[%clk 0:00:23]} 54. Rxh4 {[%clk 0:00:01]}  Ke7 {[%clk 0:00:23]} 55. Kd2 {[%clk 0:00:01]}  Kd7 {[%clk 0:00:23]} 56. Kc2 {[%clk 0:00:02]}  Rg3 {[%clk 0:00:22]} 57. a5 {[%clk 0:00:02]}  Kc6 {[%clk 0:00:22]} 58. Rh5 {[%clk 0:00:01]}  Kb7 {[%clk 0:00:22]} 59. Kb2 {[%clk 0:00:02]}  Ka6 {[%clk 0:00:22]} 60. Kc2 {[%clk 0:00:02]}  Ra3 {[%clk 0:00:22]} 61. Kb2 {[%clk 0:00:02]}  Rxa5 {[%clk 0:00:22]} 62. Rxa5+ {[%clk 0:00:02]}  Kxa5 {[%clk 0:00:23]} 1/2-1/2


[Site "https://www.chess.com"]

[Event "Titled Tuesday Blitz March 14 Early 2023"]
[White "Janaszak, Dawid"]
[Black "Rostomyan, Mikayel"]
[WhiteFideId "1119206"]
[BlackFideId "13313754"]
[WhiteElo "2220"]
[BlackElo "2009"]
[Result "1-0"]
[Round "04"]
[TimeControl "180+2"]
[Date "2023.03.14"]
[WhiteClock "0:00:06"]
[BlackClock "0:00:01"]

1. d4 {[%clk 0:03:00]}  Nf6 {[%clk 0:02:59]} 2. Bf4 {[%clk 0:02:59]}  d5 {[%clk 0:02:58]} 3. e3 {[%clk 0:02:57]}  c5 {[%clk 0:02:57]} 4. c3 {[%clk 0:02:56]}  Qb6 {[%clk 0:02:54]} 5. Qb3 {[%clk 0:02:53]}  c4 {[%clk 0:02:54]} 6. Qc2 {[%clk 0:02:53]}  Bf5 {[%clk 0:02:52]} 7. Qxf5 {[%clk 0:02:52]}  e5 {[%clk 0:02:40]} 8. Qc8+ {[%clk 0:02:50]}  Ke7 {[%clk 0:02:38]} 9. dxe5 {[%clk 0:02:40]}  Ne4 {[%clk 0:02:27]} 10. f3 {[%clk 0:02:11]}  g5 {[%clk 0:02:04]} 11. fxe4 {[%clk 0:02:06]}  gxf4 {[%clk 0:02:04]} 12. Nd2 {[%clk 0:01:41]}  fxe3 {[%clk 0:01:33]} 13. exd5 {[%clk 0:01:06]}  exd2+ {[%clk 0:01:31]} 14. Kd1 {[%clk 0:01:07]}  Nd7 {[%clk 0:00:48]} 15. d6+ {[%clk 0:00:39]}  Ke6 {[%clk 0:00:47]} 16. Bxc4+ {[%clk 0:00:20]}  Kxe5 {[%clk 0:00:48]} 17. Qxd7 {[%clk 0:00:17]}  Qxd6 {[%clk 0:00:03]} 18. Nf3+ {[%clk 0:00:16]}  Kf4 {[%clk 0:00:02]} 19. Qxf7+ {[%clk 0:00:16]}  Ke3 {[%clk 0:00:02]} 20. Rf1 {[%clk 0:00:08]}  Bh6 {[%clk 0:00:02]} 21. Nh4 {[%clk 0:00:06]}  Ke4 {[%clk 0:00:01]} 22. Qf5+ {[%clk 0:00:06]}  Ke3 {[%clk 0:00:01]} 23. Qf3# {[%clk 0:00:06]} 1-0


[Site "https://www.chess.com"]